bitfinex/quotes_ETHUSD_20251120
["timestamp","ask_amount","ask_price","bid_price","bid_amount"]
[1763610481504,0.002,3046.5,3046.4,4.32606302]
[1763610481662,0.002,3046.5,3046.4,3.83966302]
[1763610481863,0.002,3046.5,3046.4,3.38256302]
[1763610482264,0.4956,3046.5,3046.4,3.38256302]
[1763610483199,0.4956,3046.5,3046.0,3.28393029]
[1763610483200,0.9721,3046.5,3046.0,3.28393029]
[1763610483400,0.4785,3046.5,3046.4,0.1]
[1763610483599,0.9721,3046.5,3046.4,0.1]
[1763610483897,1.97966995,3046.5,3046.4,0.1]
[1763610484476,1.61416995,3046.5,3046.4,0.1]
[1763610484798,0.9116478,3046.5,3046.4,0.1]
[1763610485167,2.09066995,3046.5,3046.4,0.1]
[1763610486180,2.9717335,3046.5,3046.4,0.1]
[1763610486696,2.9717335,3046.5,3046.2,3.28271448]
[1763610486909,0.99406355,3046.5,3046.4,0.1]
[1763610487194,2.00598075,3046.5,3046.4,0.1]
[1763610487434,3.14593535,3046.5,3046.4,0.1]
[1763610487604,3.91666125,3046.5,3046.4,0.1]
[1763610488676,7.19911652,3046.5,3046.4,0.1]
[1763610489012,3.91666125,3046.5,3046.4,0.1]
[1763610489180,3.91666125,3046.5,3046.0,3.28395477]
[1763610489376,1.78188945,3046.5,3046.4,0.1]
[1763610489576,2.79458756,3046.5,3046.4,0.1]
[1763610489807,6.07704283,3046.5,3046.4,0.1]
[1763610490108,7.45523547,3046.5,3046.4,0.1]
[1763610490324,7.45523547,3046.5,3046.0,0.001]
[1763610490325,0.90699264,3046.4,3046.3,0.1]
[1763610490487,0.4584,3046.1,3046.0,0.001]
[1763610490687,3.55469199,3046.1,3046.0,0.001]
[1763610490908,2.34780211,3046.1,3046.0,0.09824521]
[1763610491108,6.53768106,3046.1,3046.0,0.09824521]
[1763610491408,5.59494933,3046.1,3046.0,0.09824521]
[1763610491572,2.64685716,3046.1,3046.0,0.09824521]
[1763610491774,1.12369811,3046.1,3046.0,0.09824521]
[1763610492597,1.58209811,3046.1,3046.0,0.09824521]
[1763610492996,2.05329811,3046.1,3046.0,0.09824521]
[1763610493881,2.05329811,3046.1,3046.0,0.09924521]
[1763610495482,2.43752064,3046.1,3046.0,0.09924521]
[1763610495681,7.82444011,3046.1,3046.0,0.09924521]
[1763610495883,7.95538955,3046.1,3046.0,0.09924521]
[1763610497312,6.78016118,3046.1,3046.0,0.09924521]
[1763610497504,3.09177087,3046.1,3046.0,0.001]
[1763610497687,3.97275967,3046.1,3046.0,0.09924521]
[1763610497883,6.37465718,3046.1,3046.0,0.09924521]
[1763610498110,8.33890749,3046.1,3046.0,0.09924521]
[1763610498503,4.17502833,3046.1,3046.0,0.09924521]
[1763610498878,2.96029075,3046.1,3046.0,0.09924521]
[1763610499084,2.48909075,3046.1,3046.0,0.09924521]
[1763610499301,2.96029075,3046.1,3046.0,0.09924521]
[1763610500192,2.05329811,3046.1,3046.0,0.09924521]
[1763610500390,2.96029075,3046.1,3046.0,0.09924521]
[1763610501014,2.05329811,3046.1,3046.0,0.09924521]
[1763610502222,2.05239068,3046.1,3046.0,0.09924521]
[1763610503102,2.95938332,3046.1,3046.0,0.09924521]
[1763610503999,0.70619894,3046.1,3046.0,4.3597393]
[1763610504214,0.002,3046.5,3046.4,0.09824521]
[1763610504422,0.002,3046.5,3046.4,0.71874521]
[1763610504601,0.002,3046.5,3046.4,1.20934521]
[1763610505316,0.002,3046.5,3046.4,1.34075147]
[1763610505487,0.002,3046.8,3046.7,0.09824521]
[1763610505708,0.002,3046.8,3046.7,0.58514521]
[1763610505892,0.002,3046.8,3046.7,1.07574521]
[1763610507499,0.002,3046.8,3046.7,4.35798501]
[1763610508406,0.002,3046.8,3046.7,5.26497765]
[1763610509793,0.002,3046.8,3046.7,4.77437765]
[1763610510001,0.002,3046.8,3046.7,3.86738501]
[1763610510228,0.002,3046.8,3046.7,4.33468501]
[1763610516540,0.002,3046.8,3046.7,3.86738501]
[1763610516744,0.4813,3046.8,3046.7,3.38048501]
[1763610516945,0.002,3046.8,3046.7,3.38048501]
[1763610517742,0.002,3046.8,3046.7,3.85418501]
[1763610518585,0.002,3046.8,3046.7,9.17185199]
[1763610519374,0.002,3046.8,3046.7,4.42028501]
[1763610519576,0.002,3046.8,3046.7,4.30928501]
[1763610519776,0.002,3046.8,3046.7,4.42028501]
[1763610521988,0.002,3046.8,3046.7,4.30928501]
[1763610522276,0.002,3046.8,3046.7,4.42028501]
[1763610522986,0.002,3046.8,3046.7,3.96518501]
[1763610523579,0.002,3046.8,3046.7,3.38048501]
[1763610523580,0.9657,3046.8,3046.7,3.38048501]
[1763610524448,0.4685,3046.8,3046.7,3.38048501]
[1763610525175,0.4685,3046.8,3046.7,0.09824521]
[1763610525176,0.9657,3046.8,3046.7,0.09824521]
[1763610525488,0.9657,3046.8,3046.7,3.38048501]
[1763610526978,0.9657,3046.8,3046.7,0.09824521]
[1763610529001,4.35883207,3046.8,3046.7,0.09824521]
[1763610529161,5.14305781,3046.8,3046.7,0.09824521]
[1763610530066,0.9657,3046.8,3046.7,0.09824521]
[1763610530267,0.4685,3046.8,3046.7,3.38048501]
[1763610530462,0.002,3046.8,3046.7,3.38048501]
[1763610530666,0.4685,3046.8,3046.7,0.09824521]
[1763610530965,0.9657,3046.8,3046.7,0.09824521]
[1763610531779,1.17310926,3046.8,3046.7,0.09824521]
[1763610532304,0.002,3046.8,3046.7,3.86738501]
[1763610532727,0.002,3046.8,3046.7,4.32248501]
[1763610534552,0.002,3046.8,3046.7,3.86738501]
[1763610538638,0.113,3047.5,3047.4,0.09824521]
[1763610538639,0.59904053,3047.5,3047.4,0.09824521]
[1763610539015,1.06554053,3047.5,3047.4,0.09824521]
[1763610539604,1.26279385,3047.5,3047.4,0.09824521]
[1763610539838,4.54417202,3047.5,3047.4,0.09824521]
[1763610540022,5.25095876,3047.5,3047.4,0.09824521]
[1763610540340,1.26279385,3047.5,3047.4,0.09824521]
[1763610540850,6.91092089,3047.5,3047.4,0.09824521]
[1763610541018,6.86990367,3047.5,3047.4,0.09824521]
[1763610541214,6.86990367,3047.5,3046.5,0.09104521]
[1763610541215,0.405504,3047.1,3046.5,0.09104521]
[1763610541427,1.068904,3046.6,3046.5,0.09104521]
[1763610541616,3.06166984,3046.6,3046.5,0.09104521]
[1763610541819,4.67528049,3046.6,3046.5,0.09104521]
[1763610542018,7.95762802,3046.6,3046.5,0.09104521]
[1763610542740,7.07484762,3046.6,3046.5,0.09104521]
[1763610543240,3.79250009,3046.6,3046.5,0.09104521]
[1763610543649,1.1606,3046.6,3046.5,0.09104521]
[1763610543852,1.2716,3046.6,3046.5,0.09104521]
[1763610544919,0.7744,3046.6,3046.5,0.09104521]
[1763610545243,0.111,3046.6,3046.5,3.28345527]
[1763610545444,0.002,3046.8,3046.5,3.77035527]
[1763610545615,0.002,3046.8,3046.7,0.09004521]
[1763610546119,0.9657,3046.8,3046.7,0.09004521]
[1763610546623,0.002,3046.8,3046.7,0.09004521]
[1763610546823,0.4685,3046.8,3046.7,0.09004521]
[1763610547238,0.002,3046.8,3046.7,0.09004521]
[1763610547576,0.4685,3046.8,3046.7,0.09004521]
[1763610547858,0.9657,3046.8,3046.7,0.09004521]
[1763610548622,0.4685,3046.8,3046.7,0.09004521]
[1763610548929,0.002,3046.8,3046.7,0.09004521]
[1763610549132,0.4959,3046.8,3046.7,0.09004521]
[1763610549341,0.9797,3046.8,3046.7,0.09004521]
[1763610550217,0.4959,3046.8,3046.7,0.09004521]
[1763610550433,0.002,3046.8,3046.7,0.09004521]
[1763610550819,0.002,3046.8,3046.5,0.001]
[1763610550820,0.405504,3046.7,3046.5,0.001]
[1763610551021,3.9826519,3046.6,3046.5,0.001]
[1763610551255,0.405504,3046.5,3046.0,0.001]
[1763610551485,0.1154,3046.2,3046.0,0.001]
[1763610551635,0.1154,3046.2,3046.1,0.09104521]
[1763610551835,0.5992,3046.2,3046.1,0.09104521]
[1763610552067,1.48295407,3046.2,3046.1,0.001]
[1763610552266,4.76573261,3046.2,3046.1,0.001]
[1763610552459,6.37802659,3046.2,3046.1,0.001]
[1763610552659,7.25868409,3046.2,3046.1,0.001]
[1763610553293,7.25801184,3046.2,3046.1,0.001]
[1763610553634,7.25801184,3046.2,3045.8,0.001]
[1763610553635,1.31249664,3046.1,3045.8,0.001]
[1763610553956,0.599004,3045.8,3045.4,0.001]
[1763610554159,0.405504,3045.6,3045.4,0.001]
[1763610554360,4.1770449,3045.4,3044.9,0.09004521]
[1763610554550,1.91838483,3045.3,3044.9,0.09004521]
[1763610554747,0.604904,3045.0,3044.9,0.09004521]
[1763610554950,1.02199485,3045.0,3044.9,0.09004521]
[1763610555148,1.199704,3045.0,3044.9,0.09004521]
[1763610556353,5.39076888,3045.0,3044.9,0.09004521]
[1763610557236,1.40089264,3045.0,3044.9,0.09004521]
[1763610557479,1.99569264,3045.0,3044.9,0.09004521]
[1763610557673,0.90699264,3044.9,3044.8,0.09004521]
[1763610557853,1.58619264,3044.9,3044.8,0.09004521]
[1763610558564,4.87037274,3044.9,3044.8,0.09004521]
[1763610559279,4.87037274,3044.9,3043.7,0.1336]
[1763610559280,1.31249664,3044.8,3043.7,0.1336]
[1763610559486,0.405504,3044.6,3044.4,0.09004521]
[1763610559669,0.111,3044.5,3044.4,0.09004521]
[1763610559977,1.0887,3044.5,3044.4,0.09004521]
[1763610560485,0.111,3044.5,3044.1,0.1336]
[1763610560649,0.6049,3044.5,3044.4,0.09004521]
[1763610560843,0.4939,3044.5,3044.4,0.09004521]
[1763610561045,4.5967846,3044.8,3044.7,0.09004521]
[1763610561247,5.62412061,3044.8,3044.7,0.09004521]
[1763610561446,6.60182061,3044.8,3044.7,0.09004521]
[1763610561978,3.31753265,3044.8,3044.7,0.09004521]
[1763610562144,0.6049,3044.8,3044.7,0.09004521]
[1763610562344,4.7961806,3044.8,3044.7,0.09004521]
[1763610563182,5.2799806,3044.8,3044.7,0.09004521]
[1763610563953,0.90699264,3044.8,3044.7,0.09004521]
[1763610564163,0.1972,3045.3,3045.2,0.09004521]
[1763610564460,4.08584872,3045.3,3045.2,0.09004521]
[1763610564675,4.99284136,3045.3,3045.2,0.09004521]
[1763610565103,5.47664136,3045.3,3045.2,0.09004521]
[1763610565281,5.36564136,3045.3,3045.2,0.09004521]
[1763610565467,6.34156945,3045.3,3045.2,0.09004521]
[1763610565988,3.05782073,3045.3,3045.2,0.09004521]
[1763610566182,6.34156945,3045.3,3045.2,0.09004521]
[1763610568066,6.34156945,3045.3,3045.1,0.09004521]
[1763610568067,0.90699264,3045.2,3045.1,0.09004521]
[1763610568267,3.18729655,3045.2,3045.1,0.09004521]
[1763610568590,3.65749655,3045.2,3045.1,0.09004521]
[1763610568896,0.405504,3045.1,3045.0,0.09004521]
[1763610569089,1.098504,3045.1,3045.0,0.09004521]
[1763610569288,5.28946104,3045.1,3045.0,0.09004521]
[1763610569587,5.98779714,3045.1,3045.0,0.09004521]
[1763610569789,5.20419314,3045.1,3045.0,0.09004521]
[1763610569956,0.90699264,3045.0,3044.9,0.09004521]
[1763610570190,3.3949644,3045.1,3044.4,3.76216776]
[1763610570386,3.3949644,3045.1,3045.0,0.09004521]
[1763610570584,1.83734369,3045.1,3045.0,0.09004521]
[1763610570816,0.90699264,3045.0,3044.5,0.4765]
[1763610570987,0.90699264,3045.0,3044.9,0.09004521]
[1763610571188,0.111,3045.1,3045.0,0.09004521]
[1763610571696,0.5812,3045.1,3045.0,0.09004521]
[1763610571922,1.01799264,3045.1,3045.0,0.09004521]
[1763610572522,0.4891,3045.8,3045.7,0.09004521]
[1763610572840,5.50049982,3045.8,3045.7,0.09004521]
[1763610573122,7.56199173,3045.8,3045.7,0.09004521]
[1763610574414,6.05489909,3045.8,3045.7,0.09004521]
[1763610574604,5.15919402,3045.8,3045.7,0.09004521]
[1763610574921,5.1769063,3045.8,3045.7,0.09004521]
[1763610575641,5.70704642,3045.8,3045.7,0.09004521]
[1763610575955,0.90699264,3045.8,3045.7,0.58934521]
[1763610576094,1.01799264,3045.8,3045.7,0.58934521]
[1763610576831,1.01799264,3045.8,3045.7,0.09004521]
[1763610577393,1.48819264,3045.8,3045.7,0.09004521]
[1763610577621,1.01799264,3045.8,3045.7,0.09004521]
[1763610579097,1.3236936,3045.8,3045.7,0.09004521]
[1763610579298,2.02803359,3045.8,3045.7,0.09004521]
[1763610579497,2.51663359,3045.8,3045.7,0.09004521]
[1763610580731,2.51863359,3045.8,3045.7,0.09004521]
[1763610581490,1.01204095,3045.8,3045.7,0.56664521]
[1763610581695,0.41870096,3045.8,3045.7,1.05184521]
[1763610581896,0.113,3045.8,3045.7,0.56664521]
[1763610582123,0.41870096,3045.8,3045.7,0.09004521]
[1763610582429,0.90730096,3045.8,3045.7,0.09004521]
[1763610582593,1.61164095,3045.8,3045.7,0.09004521]
[1763610582796,0.113,3045.8,3045.7,4.33516267]
[1763610583020,0.002,3045.8,3045.7,4.33516267]
[1763610583233,0.113,3045.8,3045.7,4.33516267]
[1763610585018,0.113,3045.8,3045.7,1.05184521]
[1763610585234,0.113,3045.8,3045.7,0.09004521]
[1763610585235,0.6016,3045.8,3045.7,0.09004521]
[1763610585434,0.113,3045.8,3045.7,0.09004521]
[1763610586039,0.113,3045.8,3045.7,0.56664521]
[1763610587522,0.113,3045.8,3045.7,0.09004521]
[1763610587862,0.113,3045.8,3045.7,0.56664521]
[1763610588234,0.113,3045.8,3045.7,4.33516267]
[1763610588823,0.002,3045.8,3045.7,4.33516267]
[1763610589659,0.113,3045.8,3045.7,4.33516267]
[1763610589873,0.113,3045.8,3045.7,0.56664521]
[1763610590724,0.113,3045.8,3045.7,3.84996267]
[1763610591251,0.113,3045.8,3045.7,0.56664521]
[1763610591456,0.6016,3045.8,3045.7,0.09004521]
[1763610591761,0.113,3045.8,3045.7,3.84996267]
[1763610592767,0.113,3045.8,3045.7,4.33516267]
[1763610593093,0.002,3045.8,3045.7,4.35143245]
[1763610593379,0.002,3045.8,3045.7,8.89932076]
[1763610593584,0.002,3045.8,3045.7,8.88305098]
[1763610594845,0.002,3046.2,3046.1,0.09004521]
[1763610595046,0.002,3046.2,3046.1,1.23744521]
[1763610595446,0.002,3046.2,3046.1,4.52033152]
[1763610596356,0.002,3046.2,3046.1,4.03513152]
[1763610596683,0.002,3046.2,3046.1,4.52033152]
[1763610597673,0.002,3046.2,3046.1,4.53659052]
[1763610598178,0.002,3046.2,3046.1,9.08447883]
[1763610598373,0.002,3046.2,3046.1,9.06821983]
[1763610598579,0.002,3046.2,3046.1,4.52033152]
[1763610603968,0.002,3046.2,3046.1,4.03513152]
[1763610604271,0.002,3046.2,3046.1,4.52033152]
[1763610604466,0.002,3046.2,3046.1,4.03513152]
[1763610606994,0.002,3046.2,3046.1,4.52033152]
[1763610608045,0.002,3046.2,3046.1,4.53659052]
[1763610608510,0.002,3046.2,3046.1,4.52033152]
[1763610609144,0.002,3046.2,3046.1,4.53659052]
[1763610610053,0.002,3046.2,3046.1,9.08447883]
[1763610610224,0.002,3046.2,3046.1,9.06821983]
[1763610610539,0.002,3046.2,3046.1,9.97521247]
[1763610610838,0.002,3046.5,3046.2,1.31249664]
[1763610611026,0.002,3046.5,3046.4,0.57414521]
[1763610611203,0.002,3046.5,3046.4,1.07699612]
[1763610611742,0.002,3046.5,3046.4,1.06074521]
[1763610612341,0.002,3046.5,3046.4,5.25030087]
[1763610616555,0.002,3046.5,3046.4,4.76370087]
[1763610616724,0.002,3046.5,3046.4,5.25030087]
[1763610617210,0.002,3046.5,3046.4,4.76370087]
[1763610617650,0.002,3046.5,3046.4,3.85670823]
[1763610620568,0.4842,3046.5,3046.4,3.37260823]
[1763610620935,0.002,3046.5,3046.4,3.37260823]
[1763610622663,0.002,3046.5,3046.4,3.85670823]
[1763610623556,0.002,3046.5,3046.4,4.35955914]
[1763610623864,0.002,3046.5,3046.4,5.25030087]
[1763610625769,0.002,3046.5,3046.4,4.76370087]
[1763610626350,0.002,3046.5,3046.4,5.25030087]
[1763610626667,0.002,3046.5,3046.4,4.76370087]
[1763610627380,0.002,3046.5,3046.4,3.85670823]
[1763610628451,0.002,3046.5,3046.4,4.33770823]
[1763610628771,0.002,3046.5,3046.4,5.24470087]
[1763610629094,0.002,3046.5,3046.4,4.76370087]
[1763610629698,0.002,3046.5,3046.4,3.85670823]
[1763610630662,0.002,3046.5,3046.4,4.33770823]
[1763610630868,0.002,3046.5,3046.4,7.8323679]
[1763610631266,0.002,3046.5,3046.4,7.3513679]
[1763610632351,0.002,3046.5,3046.4,7.8323679]
[1763610633487,0.002,3046.5,3046.4,7.3513679]
[1763610633989,0.002,3046.5,3046.4,3.85670823]
[1763610634188,0.002,3046.5,3046.4,3.37260823]
[1763610634394,0.4656,3046.5,3046.4,3.37260823]
[1763610634698,0.9223,3046.5,3046.4,3.37260823]
[1763610637098,0.9223,3046.5,3046.4,0.09004521]
[1763610637264,0.9223,3046.5,3046.4,3.37260823]
[1763610641994,0.002,3046.5,3046.4,3.85060823]
[1763610642501,0.4878,3046.5,3046.4,3.37260823]
[1763610643294,0.9704,3046.5,3046.4,0.09004521]
[1763610645704,0.9704,3046.5,3046.4,3.37260823]
[1763610646087,0.9704,3046.5,3046.4,0.09004521]
[1763610647694,0.4878,3046.5,3046.4,3.37260823]
[1763610647899,0.9704,3046.5,3046.4,3.37260823]
[1763610648313,0.4878,3046.5,3046.4,3.37260823]
[1763610649281,0.002,3046.5,3046.4,4.33530823]
[1763610649477,0.4321,3046.5,3046.4,0.09004521]
[1763610649819,0.9147,3046.5,3046.4,0.09004521]
[1763610650608,0.9147,3046.5,3046.4,3.37260823]
[1763610650912,0.111,3046.5,3046.4,3.28256302]
[1763610651113,0.5968,3046.5,3046.4,3.37260823]
[1763610651307,0.5988,3046.5,3046.4,3.37260823]
[1763610651606,1.0814,3046.5,3046.4,3.37260823]
[1763610651909,1.0814,3046.5,3046.4,0.09004521]
[1763610652085,1.0814,3046.5,3046.4,3.37260823]
[1763610654206,1.0814,3046.5,3046.4,0.09004521]
[1763610654416,1.0814,3046.5,3046.4,3.37260823]
[1763610655313,0.002,3046.5,3046.4,3.37260823]
[1763610655513,0.002,3046.5,3046.4,3.85060823]
[1763610655713,0.113,3046.5,3046.4,3.85060823]
[1763610657200,0.002,3046.5,3046.4,4.35155914]
[1763610657396,0.002,3046.5,3046.4,4.33530823]
[1763610657930,0.002,3046.5,3046.4,5.24230087]
[1763610661028,0.002,3046.5,3046.4,5.57401057]
[1763610661323,0.002,3046.5,3046.4,6.06261633]
[1763610662114,0.002,3046.5,3046.4,6.07886724]
[1763610662486,0.002,3046.9,3046.8,0.49554921]
[1763610662807,0.002,3046.9,3046.8,6.74530993]
[1763610663017,0.002,3046.9,3046.8,7.23000993]
[1763610663917,0.002,3046.9,3046.8,10.512142]
[1763610667843,0.002,3046.9,3046.8,10.027442]
[1763610668050,0.002,3046.9,3046.8,5.76227392]
[1763610670053,0.002,3046.9,3046.8,5.35676992]
[1763610670622,0.4723,3046.9,3046.8,3.37217728]
[1763610670821,1.1043,3046.9,3046.8,3.37217728]
[1763610672933,1.1043,3046.9,3046.8,0.09004521]
[1763610673266,1.1043,3046.9,3046.8,3.37217728]
[1763610675476,0.623,3046.9,3046.8,3.37217728]
[1763610675656,0.4723,3046.9,3046.8,3.37217728]
[1763610675856,0.9536,3046.9,3046.8,3.37217728]
[1763610676059,1.0964,3046.9,3046.8,3.37217728]
[1763610677435,1.0964,3046.9,3046.8,0.09004521]
[1763610678155,1.53443807,3046.9,3046.8,0.09004521]
[1763610678538,1.0964,3046.9,3046.8,0.09004521]
[1763610680135,1.2074,3046.9,3046.8,3.37217728]
[1763610680544,0.6151,3046.9,3046.8,3.37217728]
[1763610680734,0.6151,3046.9,3046.8,3.74623207]
[1763610680735,0.002,3046.9,3046.8,3.74623207]
[1763610680934,0.002,3046.9,3046.8,3.85251742]
[1763610681135,0.002,3046.9,3046.8,4.34111742]
[1763610681639,0.002,3046.9,3046.8,5.23186992]
[1763610687360,0.002,3046.9,3046.8,5.63737392]
[1763610689172,0.002,3046.9,3046.8,5.74837392]
[1763610690752,0.002,3047.1,3047.0,0.5306]
[1763610690753,1e-08,3047.1,3047.0,0.5306]
[1763610690951,1e-08,3047.1,3047.0,6.29411095]
[1763610691275,1e-08,3047.1,3047.0,10.07212758]
[1763610691470,1e-08,3047.1,3047.0,10.05589282]
[1763610692046,1e-08,3047.1,3047.0,10.18723435]
[1763610694448,1e-08,3047.1,3047.0,4.94089601]
[1763610694677,1e-08,3047.1,3047.0,5.16505848]
[1763610695548,1e-08,3047.1,3047.0,4.75955448]
[1763610695851,0.95650001,3047.1,3047.0,3.37196184]
[1763610696276,0.95650001,3047.1,3047.0,0.09004521]
[1763610696475,0.95650001,3047.1,3047.0,3.37196184]
[1763610696675,0.95650001,3047.1,3047.0,0.09004521]
[1763610698060,0.95650001,3047.1,3047.0,3.37196184]
[1763610698391,0.95650001,3047.1,3047.0,0.09004521]
[1763610700587,4.34930894,3047.1,3047.0,4.521e-05]
[1763610700786,6.01979206,3047.1,3047.0,0.1]
[1763610700988,6.01979206,3047.1,3046.5,0.001]
[1763610701191,5.06329206,3047.1,3047.0,0.1]
[1763610701394,5.36933239,3047.1,3047.0,0.1]
[1763610701693,0.90699264,3047.0,3046.9,0.1]
[1763610701907,2.6447433,3047.0,3046.9,0.1]
[1763610702206,2.82368677,3047.0,3046.5,0.001]
[1763610702504,0.343,3046.6,3046.5,0.101]
[1763610702908,0.8138,3046.6,3046.5,0.101]
[1763610703902,0.8138,3046.6,3046.5,0.001]
[1763610704104,0.8138,3046.6,3046.5,0.101]
[1763610704312,0.8138,3046.6,3046.5,3.38345527]
[1763610705803,0.8138,3046.6,3046.5,0.101]
[1763610707609,1.22339801,3046.6,3046.5,0.001]
[1763610707812,0.8138,3046.6,3046.5,0.101]
[1763610708110,4.09614753,3046.6,3046.5,0.101]
[1763610708496,0.8138,3046.6,3046.5,0.101]
[1763610708811,0.9248,3046.6,3046.5,0.101]
[1763610709108,4.20714753,3046.6,3046.5,0.001]
[1763610709315,5.04677499,3046.6,3046.5,0.101]
[1763610709715,9.44944466,3046.6,3046.5,0.101]
[1763610709900,9.44944466,3046.6,3046.4,0.001]
[1763610709901,13.13729619,3046.6,3046.4,0.001]
[1763610710101,9.23854866,3046.6,3046.5,0.1]
[1763610710479,9.72354866,3046.6,3046.5,0.1]
[1763610710677,10.49979611,3046.6,3046.5,0.1]
[1763610710880,0.405504,3046.4,3046.2,0.1]
[1763610711181,4.59516742,3046.3,3046.2,0.1]
[1763610711380,0.90699264,3046.2,3046.1,0.101]
[1763610711577,5.01906967,3046.2,3046.1,0.101]
[1763610712205,1.52339264,3046.2,3046.1,0.101]
[1763610712409,2.68183376,3046.2,3046.1,0.101]
[1763610712606,2.68183376,3046.2,3046.1,0.001]
[1763610712805,2.68183376,3046.2,3046.1,0.101]
[1763610713223,6.0756123,3046.2,3046.1,0.101]
[1763610714117,1.77484112,3046.2,3046.1,0.101]
[1763610714324,0.7274,3046.2,3046.1,0.101]
[1763610715191,4.91717118,3046.2,3046.1,0.101]
[1763610716930,4.95820591,3046.2,3046.1,0.101]
[1763610717640,4.91717118,3046.2,3046.1,0.101]
[1763610719735,4.95820591,3046.2,3046.1,0.101]
[1763610720036,5.79544066,3046.2,3046.1,0.101]
[1763610720409,5.68444066,3046.2,3046.1,0.101]
[1763610720735,6.20094466,3046.2,3046.1,0.101]
[1763610720905,6.50580619,3046.2,3046.1,0.001]
[1763610721105,0.405504,3046.1,3046.0,0.001]
[1763610721427,2.71872828,3046.1,3046.0,0.101]
[1763610721734,6.13309687,3046.1,3046.0,0.101]
[1763610722107,6.43814198,3046.1,3046.0,0.101]
[1763610722519,6.47917805,3046.1,3046.0,0.101]
[1763610723012,6.13309687,3046.1,3046.0,0.101]
[1763610723202,6.43827234,3046.1,3046.0,0.101]
[1763610723403,6.61410323,3046.1,3046.0,0.101]
[1763610723602,5.25327895,3046.1,3046.0,0.101]
[1763610725224,5.5589557,3046.1,3046.0,0.101]
[1763610725427,5.59999177,3046.1,3046.0,0.101]
[1763610726041,6.70973969,3046.1,3046.0,0.101]
[1763610726350,6.66870362,3046.1,3046.0,0.101]
[1763610728421,8.39595708,3046.1,3046.0,0.001]
[1763610728616,8.52743936,3046.1,3046.0,0.101]
[1763610729013,8.01093536,3046.1,3046.0,0.101]
[1763610729321,8.39595708,3046.1,3046.0,0.101]
[1763610730932,8.28495708,3046.1,3046.0,0.101]
[1763610731138,8.39595708,3046.1,3046.0,0.101]
[1763610733226,7.87945308,3046.1,3046.0,0.101]
[1763610733423,7.99078475,3046.1,3046.0,0.101]
[1763610734146,9.27733761,3046.1,3046.0,0.101]
[1763610734542,9.40881945,3046.1,3046.0,0.101]
[1763610735164,8.52777059,3046.1,3046.0,0.101]
[1763610735362,8.5278616,3046.1,3046.0,0.001]
[1763610735588,9.70116126,3046.1,3046.0,0.001]
[1763610735964,1.31249664,3046.0,3045.7,0.001]
[1763610736265,4.01190321,3045.9,3045.7,0.001]
[1763610736461,9.03736362,3045.9,3045.7,0.001]
[1763610736767,10.89339775,3045.9,3045.7,0.001]
[1763610736931,11.06495125,3045.9,3045.7,0.001]
[1763610737131,2.24899664,3045.8,3045.5,0.001]
[1763610737333,2.83617564,3045.6,3045.5,0.001]
[1763610737531,3.8875618,3045.6,3045.5,0.001]
[1763610737832,4.3654618,3045.6,3045.5,0.001]
[1763610738037,4.32441899,3045.6,3045.5,0.001]
[1763610738859,4.7709658,3045.6,3045.5,0.001]
[1763610739067,4.24854037,3045.6,3045.5,0.001]
[1763610739397,7.53196563,3045.6,3045.5,0.001]
[1763610740105,0.861204,3045.5,3045.3,0.001]
[1763610740265,7.0396004,3045.4,3045.3,0.001]
[1763610740465,7.5175004,3045.4,3045.3,0.001]
[1763610740778,9.28818541,3045.4,3045.3,0.001]
[1763610741394,12.57182631,3045.4,3045.3,0.001]
[1763610741688,12.57110564,3045.4,3045.3,0.001]
[1763610742603,0.405504,3045.3,3044.9,0.001]
[1763610742805,3.60544953,3045.2,3044.9,0.001]
[1763610743126,4.47139397,3045.2,3044.9,0.001]
[1763610743411,8.27419873,3045.2,3044.9,0.001]
[1763610743606,1.31249664,3045.1,3044.9,0.001]
[1763610743773,7.08273063,3045.0,3044.9,0.001]
[1763610744104,9.10206157,3045.0,3044.9,0.001]
[1763610744272,9.23361866,3045.0,3044.9,0.001]
[1763610744466,8.52937474,3045.0,3044.9,0.001]
[1763610744805,9.23185678,3045.0,3044.9,0.001]
[1763610745504,12.51592902,3045.0,3044.9,0.001]
[1763610745806,14.27139615,3045.0,3044.9,0.001]
[1763610745972,8.07936861,3045.0,3044.9,0.001]
[1763610747876,9.24925806,3045.0,3044.9,0.001]
[1763610748391,19.06692902,3045.0,3044.9,0.001]
[1763610748909,18.15993638,3045.0,3044.9,0.001]
[1763610749089,20.23691092,3045.0,3044.9,0.001]
[1763610749416,19.06692902,3045.0,3044.9,0.001]
[1763610750311,20.23691092,3045.0,3044.9,0.001]
[1763610750512,1.31249664,3044.9,3044.1,0.001]
[1763610750811,2.02585374,3044.7,3044.1,0.001]
[1763610751012,3.23822514,3044.7,3044.1,0.001]
[1763610751312,3.24145744,3044.7,3044.1,0.001]
[1763610751715,6.52585327,3044.7,3044.1,0.001]
[1763610751884,7.86321662,3044.7,3044.1,0.001]
[1763610752090,7.99477371,3044.7,3044.1,0.001]
[1763610752907,15.60512345,3044.7,3044.1,0.001]
[1763610753796,17.71916954,3044.7,3044.1,0.001]
[1763610754002,7.21162342,3044.5,3044.1,0.001]
[1763610754202,10.81776546,3044.5,3044.1,0.001]
[1763610754407,11.28886546,3044.5,3044.1,0.001]
[1763610754825,10.63616546,3044.5,3044.1,0.001]
[1763610755025,1.0078608,3044.5,3044.4,0.9743]
[1763610755224,0.002,3045.6,3044.4,3.11584115]
[1763610755427,0.4711,3045.4,3044.9,0.1]
[1763610755593,0.87749762,3045.2,3044.9,0.1]
[1763610755787,0.87749762,3045.2,3044.4,0.001]
[1763610755788,9.8525403,3044.9,3044.4,0.001]
[1763610756003,0.4862,3044.5,3044.4,0.001]
[1763610756217,7.72437731,3045.1,3044.6,0.1]
[1763610756218,0.87749762,3045.1,3044.6,0.1]
[1763610756419,0.111,3045.0,3044.9,0.1]